Cogmind - Beta 12 X1 @@@ ROGUE MODE // 2022.08.18 @ 21:38:06 Player: Momo Result: Destroyed by S-43 Plague with Heavy Machine Gun Performance ------------- Evolutions (9) 4500 Regions Visited (27) 5400 Robots Destroyed (63) 315 Value Destroyed (2438) 2438 Prototype IDs (49) 980 Alien Tech Used (4) 800 Bonus (11501) 11501 TOTAL SCORE: 25934 Bonus ------- High Alert Combat Kills 226 Follower Combat Kills 75 Aligned with FarCom 300 Met Data Miner 300 Met Imprinter 300 Met Zhirov 300 Found Hidden Lab 3000 Used Core Reset Matrix 3000 Scanned by Researcher 500 Pursued by Intercept 1500 Acquired SGEMP 2000 Cogmind --------- Core Integrity 0/1600 Matter 56/300 Energy 98/100 System Corruption 14% Temperature Cool (0) Movement Core (50) Location -1/Access Parts ------- > --- POWER (2) -------- (None) > --- PROPULSION (8) --- (None) > --- UTILITY (10) ----- (None) > --- WEAPON (5) ------- (None) > --- INVENTORY (5) ---- Warp Gun Warp Cannon Hypervelocity Multirail SGEMP Prototype Peak State ------------ > --- POWER ------------ Quantum Reactor > --- PROPULSION ------- Armored Heavy Treads Armored Heavy Treads Armored Heavy Treads Biometal Heavy Treads > --- UTILITY ---------- Advanced Cryofiber Web Experimental Coolant Injector Experimental Energy Well Experimental Energy Well Gravity Neutralizer Experimental Core Analyzer Advanced Component Analysis Suite > --- WEAPON ----------- Improved Potential Cannon Chainsword > --- INVENTORY -------- Warp Cannon Warp Cannon Hypervelocity Multirail Fusion Bomb Launcher Portable AFG [Rating: 168] Favorites ----------- Power Improved Ion Engine Engine Improved Ion Engine Power Core Light Fission Core Reactor Fusion Reactor Propulsion Flying Fortress v7 Treads Armored Heavy Treads Wheel Compact Wheel Flight Unit Flying Fortress v7 Utility Medium Storage Unit Device Advanced Sensor Array Storage Medium Storage Unit Processor Experimental Signal Interpreter Hackware Improved System Shield Protection Propulsion Shielding Weapon Cooled Plasma Cannon Energy Gun Warp Gun Energy Cannon Cooled Plasma Cannon Ballistic Gun Light Assault Rifle Ballistic Cannon Heavy Gauss Cannon Launcher Precision Rocket Launcher Special Weapon Remote Datajack Impact Weapon Heavy Flail Slashing Weapon Axe Build | -11 -10 -10 -10 -9 -8 -7 -7 -7 -7 -6 -6 -6 -6 -6 -5 -5 -5 -5 -5 -4 -4 -4 -4 -3 -2 -2 -1 ------- Run | Scr Mat Min Exi Min Mat Fac Low Low Zio Pro Fac Low Low Dat Pro Fac Upp Upp Zhi Pro Fac Arm Lab Res Res Tes Acc Slots Evolved 18 | . . . . . 4 2 . . . . 2 . . . . 2 . . . . 2 . . 2 2 . 2 Power 1 | . . . . . . . . . . . . . . . . . . . . . . . . . 1 . . Propulsion 6 | . . . . . 2 . . . . . . . . . . 2 . . . . . . . 2 . . . Utility 8 | . . . . . 2 2 . . . . 2 . . . . . . . . . 2 . . . . . . Weapon 3 | . . . . . . . . . . . . . . . . . . . . . . . . . 1 . 2 Parts Attached 160 | 6 4 1 5 . 3 8 . 3 4 4 17 . 3 . 6 7 . 1 5 . 15 3 9 15 11 21 9 Power 8 | 1 1 1 . . . . . . . 1 . . . . . . . . 1 . . . . . 1 2 . Engine 3 | 1 1 1 . . . . . . . . . . . . . . . . . . . . . . . . . Core 1 | . . . . . . . . . . 1 . . . . . . . . . . . . . . . . . Reactor 4 | . . . . . . . . . . . . . . . . . . . 1 . . . . . 1 2 . Propulsion 28 | 2 . . 1 . . 1 . 2 . . . . 2 . . 3 . 1 . . 1 . . 5 1 4 5 Treads 13 | . . . . . . . . . . . . . . . . . . . . . . . . 3 1 4 5 Leg . | . . . . . . . . . . . . . . . . . . . . . . . . . . . . Wheel 3 | 2 . . 1 . . . . . . . . . . . . . . . . . . . . . . . . Hover . | . . . . . . . . . . . . . . . . . . . . . . . . . . . . Flight 12 | . . . . . . 1 . 2 . . . . 2 . . 3 . 1 . . 1 . . 2 . . . Utility 77 | 1 1 . 2 . 1 3 . 1 4 . 8 . . . 5 4 . . 4 . 10 2 8 6 7 8 2 Device 42 | . . . 1 . . 1 . 1 1 . 3 . . . 3 2 . . 2 . 8 1 4 4 6 4 1 Storage 6 | 1 . . 1 . . . . . . . . . . . . . . . . . . . 1 1 . 2 . Processor 15 | . . . . . . 2 . . 1 . 3 . . . 2 1 . . . . 1 1 . . 1 2 1 Hackware 6 | . . . . . . . . . 1 . 1 . . . . 1 . . 1 . 1 . 1 . . . . Protection 8 | . 1 . . . 1 . . . 1 . 1 . . . . . . . 1 . . . 2 1 . . . Artifact . | . . . . . . . . . . . . . . . . . . . . . . . . . . . . Weapon 47 | 2 2 . 2 . 2 4 . . . 3 9 . 1 . 1 . . . . . 4 1 1 4 2 7 2 Energy Gun 1 | . . . . . . . . . . . . . . . . . . . . . . . . . . . 1 Energy Cannon 19 | . . . 1 . . . . . . 1 6 . . . 1 . . . . . 1 . 1 1 1 5 1 Ballistic Gun 6 | 2 . . . . 1 2 . . . . . . . . . . . . . . . . . . . 1 . Ballistic Cannon 1 | . . . . . . . . . . . . . . . . . . . . . . . . . 1 . . Launcher 15 | . 2 . 1 . 1 1 . . . . 3 . 1 . . . . . . . 3 1 . 1 . 1 . Special Weapon 1 | . . . . . . . . . . . . . . . . . . . . . . . . 1 . . . Impact Weapon 1 | . . . . . . . . . . 1 . . . . . . . . . . . . . . . . . Slashing Weapon 3 | . . . . . . 1 . . . 1 . . . . . . . . . . . . . 1 . . . Piercing Weapon . | . . . . . . . . . . . . . . . . . . . . . . . . . . . . Special Melee Weapon . | . . . . . . . . . . . . . . . . . . . . . . . . . . . . Unidentified Prototypes 30 | . . . 2 . . 2 . . 1 . 3 . . . . 1 . . 3 . 2 1 2 3 2 7 1 Parts Lost 34 | . . 2 . . . . . . . . 1 . 2 . . . . . . . . . . 5 2 13 9 Power 1 | . . 1 . . . . . . . . . . . . . . . . . . . . . . . . . Propulsion 14 | . . 1 . . . . . . . . . . . . . . . . . . . . . 2 . 6 5 Utility 19 | . . . . . . . . . . . 1 . 2 . . . . . . . . . . 3 2 7 4 Weapon . | . . . . . . . . . . . . . . . . . . . . . . . . . . . . Highest Loss Streak 10 | . . 1 . . . . . . . . 1 . 2 . . . . . . . . . . 5 2 10 6 To Critical Strikes 2 | . . . . . . . . . . . . . . . . . . . . . . . . . . 2 . Average Slot Usage (%) 71 | . 91 96 91 100 70 71 76 66 67 75 76 80 72 60 74 77 76 75 76 76 77 78 77 55 50 48 14 Engine 3 | . 14 14 14 14 9 7 7 7 7 3 . . . . . . . . . . . . . . . . . Core 1 | . . . . . . . . . . 3 6 6 6 6 6 5 5 5 2 . . . . . . . . Reactor 1 | . . . . . . . . . . . . . . . . . . . 2 5 5 5 5 2 . 1 . Treads 1 | . . . . . . . . . . . . . . . . . . . . . . . . 3 13 15 6 Wheel 3 | . 28 24 21 28 18 1 . . . . . . . . . . . . . . . . . . . . . Flight 5 | . . . . . . 6 7 6 7 7 6 6 5 6 6 12 11 10 11 11 10 10 10 7 4 . . Device 15 | . . . 7 14 9 10 15 13 7 7 15 26 23 20 25 18 17 17 17 17 23 26 25 16 23 18 3 Storage 6 | . 14 14 14 14 9 7 7 7 7 7 6 6 6 6 6 5 5 5 5 5 5 5 7 2 . 6 . Processor 7 | . . . . . . 14 15 15 11 7 12 13 8 . 8 11 11 11 9 5 7 10 10 5 2 1 4 Hackware 2 | . . . . . . . . . 3 7 6 . . . . 4 5 5 7 11 9 5 2 2 . . . Protection 5 | . 6 14 6 . 7 7 7 7 13 15 7 6 6 6 6 5 5 5 5 5 5 5 5 2 . . . Energy Cannon 2 | . . . . . . . . . . 3 4 6 3 . 5 5 5 5 5 5 4 5 8 6 1 1 . Launcher 6 | . 10 28 27 28 14 6 7 . . . 4 6 8 13 7 5 5 5 5 5 5 5 1 . . . . Slashing Weapon 1 | . . . . . . 2 7 7 7 3 . . . . . . . . . . . . . . 4 1 . Naked Turns 16 | . . . . . . . . . . . . . . . . . . . . . . . . 1 . . 15 Heaviest Build 73 | 13 21 21 25 25 26 26 26 26 23 33 44 42 42 41 51 49 45 45 49 46 63 67 73 67 43 51 4 Greatest Support 280 | 26 26 26 32 32 32 50 50 50 50 50 50 50 50 50 50 63 63 63 63 63 75 75 75 75 267 267 280 Greatest Overweight (x) 13 | . . 1 1 . . . . 7 . . . . 13 . 1 . . . . . . . . . 1 4 1 Average Overweight (x) . | . . . . . . . . . . . . . . . . . . . . . . . . . . . . Largest Inventory Capacity 10 | 8 8 8 10 10 10 10 10 10 10 10 10 10 10 10 10 10 10 10 10 10 10 10 10 10 5 5 5 Average Capacity 9 | 7 8 8 8 10 10 10 10 10 10 10 10 10 10 10 10 10 10 10 10 10 10 10 10 8 5 5 5 Most Carried 10 | . 8 8 8 8 10 10 10 10 10 10 10 10 10 10 10 10 10 10 10 10 10 10 10 10 5 5 5 Average Carried 8 | . 3 7 7 8 9 7 9 9 9 9 9 10 9 10 9 9 9 8 9 10 9 9 9 8 4 4 4 Final Capacity 10 | 8 8 8 10 10 10 10 10 10 10 10 10 10 10 10 10 10 10 10 10 10 10 10 10 5 5 5 5 Final Carried 10 | . 8 7 8 8 10 10 10 7 10 10 10 10 10 10 10 10 10 10 10 10 10 10 10 5 5 5 5 Class Distribution -------------------- 42% | Mutant 24% | Scout 14% | Alien-Mutant 9% | Hacker-Scout 4% | Derelict-Scout Dominant Class ---------------- Mutant | -10/Materials Mutant | -10/Mines Mutant | -10/Exiles Mutant | -9/Mines Mutant | -8/Materials Mutant | -7/Factory Mutant | -7/Lower Caves Mutant | -7/Lower Caves Mutant | -7/Zion Derelict-Mutant | -6/Proximity Caves Scout | -6/Factory Scout | -6/Lower Caves Scout | -6/Lower Caves Mutant | -6/Data Miner Derelict-Scout | -5/Proximity Caves Derelict-Scout | -5/Factory Scout | -5/Upper Caves Scout | -5/Upper Caves Hacker-Scout | -5/Zhirov Hacker-Scout | -4/Proximity Caves Hacker-Scout | -4/Factory Mutant | -4/Armory Mutant | -4/Lab Scout | -3/Research Alien-Mutant | -2/Research Alien-Mutant | -2/Testing Alien-Mutant | -1/Access Resources | -11 -10 -10 -10 -9 -8 -7 -7 -7 -7 -6 -6 -6 -6 -6 -5 -5 -5 -5 -5 -4 -4 -4 -4 -3 -2 -2 -1 ----------- Run | Scr Mat Min Exi Min Mat Fac Low Low Zio Pro Fac Low Low Dat Pro Fac Upp Upp Zhi Pro Fac Arm Lab Res Res Tes Acc Matter Collected 3137 | 145 115 89 . 43 . 29 143 48 83 30 57 518 35 . 568 106 33 169 . 125 418 . 10 35 191 147 . Remotely . | . . . . . . . . . . . . . . . . . . . . . . . . . . . . Salvage Created 2059 | . . 171 . . . 75 . . . . 194 . 19 . . 106 . 83 . 159 448 . . 177 191 436 . Parts 100 | . . 11 . . . 4 . . . . 8 . 8 . . 4 . 1 . 7 27 . . 9 11 10 . Haulers Intercepted 1 | . . . . . . . . . . . . . . . . 1 . . . . . . . . . . . Recyclers Shooed 1 | . . 1 . . . . . . . . . . . . . . . . . . . . . . . . . Parts Field Recycled . | . . . . . . . . . . . . . . . . . . . . . . . . . . . . Retrieved Matter . | . . . . . . . . . . . . . . . . . . . . . . . . . . . . Parts Self-Destructed 6 | . . . . . . . . . . . . 2 . . . . . 1 . 3 . . . . . . . Prevented 1 | . . . . . . . . . . . . . . . . . . 1 . . . . . . . . . Kills | -11 -10 -10 -10 -9 -8 -7 -7 -7 -7 -6 -6 -6 -6 -6 -5 -5 -5 -5 -5 -4 -4 -4 -4 -3 -2 -2 -1 ------- Run | Scr Mat Min Exi Min Mat Fac Low Low Zio Pro Fac Low Low Dat Pro Fac Upp Upp Zhi Pro Fac Arm Lab Res Res Tes Acc Combat Hostiles Destroyed 43 | . . 8 . . . 1 . . . . 3 . 3 . . . . 2 . 5 12 . . 3 . 6 . Cannons 10 | . . . . . . . . . . . 3 . . . . . . . . . 2 . . 2 . 3 . AOE 33 | . . 8 . . . 1 . . . . . . 3 . . . . 2 . 5 10 . . 1 . 3 . Classes Destroyed 15 | . . 2 . . . 1 . . . . 1 . 1 . . 1 . 2 . . 3 . . 1 1 2 . Worker 4 | . . . . . . . . . . . . . . . . . . . . . . . . . 3 1 . Builder 6 | . . . . . . . . . . . . . . . . . . . . . 3 . . . 1 2 . Hauler 1 | . . . . . . . . . . . . . . . . 1 . . . . . . . . . . . Recycler 2 | . . . . . . . . . . . . . . . . . . . . . 1 . . . 1 . . Operator 4 | . . . . . . 1 . . . . . . . . . 1 . . . . 1 . . . . 1 . Watcher 1 | . . . . . . . . . . . . . . . . . . . . . . . . 1 . . . Swarmer 19 | . . 6 . . . . . . . . . . . . . . . . . 5 8 . . . . . . Grunt 11 | . . 2 . . . 1 . . . . 2 . . . . . . . . . . . . 2 . 4 . Brawler 1 | . . . . . . . . . . . . . . . . . . 1 . . . . . . . . . Duelist 1 | . . . . . . . . . . . . . . . . . . 1 . . . . . . . . . Researcher 2 | . . . . . . . . . . . . . . . . . . . . . . . . . . 2 . Sentry 1 | . . . . . . . . . . . 1 . . . . . . . . . . . . . . . . Programmer 4 | . . . . . . . . . . . . . . . . . . . . . 4 . . . . . . Tracker 1 | . . . . . . . . . . . . . . . . . . . . . . . . 1 . . . Striker 2 | . . . . . . . . . . . . . . . . . . . . . . . . . . 2 . Master Thief 3 | . . . . . . . . . . . . . 3 . . . . . . . . . . . . . . Best Kill Streak 8 | . . 3 . . . 1 . . . . 1 . 3 . . 2 . 2 . 5 8 . . 3 3 7 . Combat Bots Only 5 | . . 3 . . . 1 . . . . 1 . 3 . . . . 2 . 5 4 . . 3 . 4 . Max Kills in Single Turn 3 | . . 2 . . . 1 . . . . 1 . 1 . . 1 . 1 . 2 3 . . 1 1 2 . Gunslinging . | . . . . . . . . . . . . . . . . . . . . . . . . . . . . Exploded 3 | . . 2 . . . 1 . . . . . . 1 . . . . 1 . 2 3 . . 1 . 2 . Melee . | . . . . . . . . . . . . . . . . . . . . . . . . . . . . Uniques/NPCs Destroyed . | . . . . . . . . . . . . . . . . . . . . . . . . . . . . Combat | -11 -10 -10 -10 -9 -8 -7 -7 -7 -7 -6 -6 -6 -6 -6 -5 -5 -5 -5 -5 -4 -4 -4 -4 -3 -2 -2 -1 -------- Run | Scr Mat Min Exi Min Mat Fac Low Low Zio Pro Fac Low Low Dat Pro Fac Upp Upp Zhi Pro Fac Arm Lab Res Res Tes Acc Damage Taken 15722 | . . 268 . . 27 15 38 46 . . 167 46 70 . . 77 . 41 . . 370 142 128 1300 708 7505 4774 Core 3158 | . . 32 . . 21 . . 3 . . 36 . . . . . . . . . . 78 27 94 75 1177 1615 Absorbed by Shields 1509 | . . . . . . . . 7 . . . . . . . . . . . . 123 . 105 62 12 1200 . Reduced by Siege Mode 313 | . . . . . . . . . . . . . . . . . . . . . . . . . . 313 . Redirected to Shielding 214 | . . 29 . . . 4 . . . . 22 . 46 . . . . 4 . . 66 . 43 . . . . Regen/Repaired (Parts) 30 | . . . . . . . . . . . . . . . . . . . . . . . 1 29 . . . Core Remaining (%) 85 | 100 . . . 87 96 . . . . 99 . . . . 95 . . . . 100 . . 84 98 . 13 . Volleys Fired 279 | . . 13 . . 5 5 . . . . 27 9 11 . 1 19 1 11 . 5 66 39 3 45 . 17 2 Largest 2 | . . 2 . . 1 2 . . . . 1 1 2 . 1 1 1 1 . 1 2 1 1 1 . 1 1 Hottest 200 | . . 66 . . 30 55 . . . . 120 35 105 . 43 43 35 105 . 43 78 35 100 100 . 200 90 Shots Fired 294 | . . 19 . . 5 10 . . . . 27 9 12 . 1 19 1 11 . 5 69 39 3 45 . 17 2 Gun 11 | . . . . . 2 7 . . . . . . . . . . . . . . . . . . . . 2 Cannon 216 | . . . . . . . . . . . 27 9 6 . . 18 1 4 . . 56 39 3 36 . 17 . Launcher 67 | . . 19 . . 3 3 . . . . . . 6 . 1 1 . 7 . 5 13 . . 9 . . . Special . | . . . . . . . . . . . . . . . . . . . . . . . . . . . . Kinetic 9 | . . . . . 2 7 . . . . . . . . . . . . . . . . . . . . . Thermal 218 | . . . . . . . . . . . 27 9 6 . . 18 1 4 . . 56 39 3 36 . 17 2 Explosive 45 | . . . . . 3 3 . . . . . . 6 . 1 1 . 7 . 5 10 . . 9 . . . Electromagnetic 22 | . . 19 . . . . . . . . . . . . . . . . . . 3 . . . . . . Robot Hit Streak 11 | . . 6 . . 1 6 . . . . 1 . 2 . . 6 . 3 . 2 8 . . 1 . 9 11 Robot Miss Streak 7 | . . 4 . . 4 1 . . . . . . 6 . . 2 . 1 . . 5 . . 6 . 7 . Penetration Max . | . . . . . . . . . . . . . . . . . . . . . . . . . . . . Secondary Targets . | . . . . . . . . . . . . . . . . . . . . . . . . . . . . Shots Hit Robots 69 | . . 7 . . 1 5 . 3 . 1 1 . 3 . . 6 . 3 . 2 16 . . 2 5 12 2 Core Hits 112 | . . 10 . . . 4 . . . . 8 . 12 . . 3 . 6 . 13 29 . . 11 3 13 . Critical Kills 1 | . . . . . . . . . . . . . . . . . . . . . . . . . . 1 . Critical Parts Destroyed 2 | . . . . . . . . . . . . . . . . . . . . . . . . . . . 2 Critical Strikes 3 | . . . . . . . . . . . . . . . . . . . . . . . . . . 1 2 Meltdown 1 | . . . . . . . . . . . . . . . . . . . . . . . . . . 1 . Destroy 2 | . . . . . . . . . . . . . . . . . . . . . . . . . . . 2 Melee Attacks 38 | . . . . . . 1 . 11 . 2 14 . . . . . . . . . . . . . 7 3 . Impact 14 | . . . . . . . . . . . 14 . . . . . . . . . . . . . . . . Slashing 24 | . . . . . . 1 . 11 . 2 . . . . . . . . . . . . . . 7 3 . Piercing . | . . . . . . . . . . . . . . . . . . . . . . . . . . . . Sneak Attacks 5 | . . . . . . . . . . . . . . . . . . . . . . . . . 5 . . Combat Hostiles . | . . . . . . . . . . . . . . . . . . . . . . . . . . . . Follow-up Attacks . | . . . . . . . . . . . . . . . . . . . . . . . . . . . . Damage Inflicted 10247 | . . 514 . . 18 138 . 96 . 36 743 . 544 . . 314 . 540 . 672 1892 . . 975 350 3347 68 Guns 126 | . . . . . 18 54 . . . . . . . . . . . . . . . . . . . . 54 Cannons 3861 | . . . . . . . . . . . 743 . . . . 192 . 127 . . 456 . . 671 . 1672 . Explosions 5751 | . . 514 . . . 84 . . . . . . 544 . . 122 . 413 . 672 1436 . . 304 . 1662 . Melee 482 | . . . . . . . . 96 . 36 . . . . . . . . . . . . . . 350 . . Ramming 27 | . . . . . . . . . . . . . . . . . . . . . . . . . . 13 14 Kinetic 72 | . . . . . 18 54 . . . . . . . . . . . . . . . . . . . . . Thermal 5750 | . . 125 . . . . . . . . 743 . . . . 192 . 127 . . 504 . . 671 . 3334 54 Explosive 3359 | . . . . . . 84 . . . . . . 544 . . 122 . 413 . 672 1220 . . 304 . . . Electromagnetic 557 | . . 389 . . . . . . . . . . . . . . . . . . 168 . . . . . . Impact . | . . . . . . . . . . . . . . . . . . . . . . . . . . . . Slashing 482 | . . . . . . . . 96 . 36 . . . . . . . . . . . . . . 350 . . Piercing . | . . . . . . . . . . . . . . . . . . . . . . . . . . . . Highest Corruption 23 | . . . . . . . . . . . . . . . . . . . . . . . 5 4 . 23 14 Average Corruption 5 | . . . . . . . . . . . . . . . . . . . . . . . 2 2 . 4 9 Corruption Purged . | . . . . . . . . . . . . . . . . . . . . . . . . . . . . Corruption Blocked 3 | . . . . . . . . . . . . . . . . . . . . . 3 . . . . . . Effects 25 | . . . . . . . . . . . . . . . . . . . . . . . 1 1 . 14 9 Message Errors 4 | . . . . . . . . . . . . . . . . . . . . . . . . . . 2 2 Matter Fused 5 | . . . . . . . . . . . . . . . . . . . . . . . 1 . . 3 1 Heat Flow Errors 3 | . . . . . . . . . . . . . . . . . . . . . . . . . . 3 . Energy Discharges 3 | . . . . . . . . . . . . . . . . . . . . . . . . . . 1 2 Parts Rejected 1 | . . . . . . . . . . . . . . . . . . . . . . . . . . 1 . Data Loss (minor) 3 | . . . . . . . . . . . . . . . . . . . . . . . . 1 . 1 1 Data Loss (major) 1 | . . . . . . . . . . . . . . . . . . . . . . . . . . 1 . Misdirections 5 | . . . . . . . . . . . . . . . . . . . . . . . . . . 2 3 Overload Shots 2 | . . . . . . . . . . . . . 1 . . . . 1 . . . . . . . . . Effects 1 | . . . . . . . . . . . . . . . . . . 1 . . . . . . . . . Energy Bleed 1 | . . . . . . . . . . . . . . . . . . 1 . . . . . . . . . Overflow Damage 797 | . . 7 . . . . . . . . 29 . 5 . . . . 3 . 54 33 . . 103 58 505 . Projectiles 348 | . . . . . . . . . . . 29 . . . . . . 3 . . 2 . . 14 . 300 . Explosions 391 | . . 7 . . . . . . . . . . 5 . . . . . . 54 31 . . 89 . 205 . Melee 58 | . . . . . . . . . . . . . . . . . . . . . . . . . 58 . . Knockbacks 1 | . . . . . . . . . . . . . . . . . . . . . . . . . . . 1 Impact 1 | . . . . . . . . . . . . . . . . . . . . . . . . . . . 1 Kinetic . | . . . . . . . . . . . . . . . . . . . . . . . . . . . . Secondary . | . . . . . . . . . . . . . . . . . . . . . . . . . . . . Self-Inflicted Damage 479 | . . 124 . . 12 . . . . . . . 70 . . . . 21 . . 6 . . 120 . 120 6 Shots 16 | . . 8 . . 1 . . . . . . . 1 . . . . 1 . . 1 . . 2 . 2 . Rammed 12 | . . . . . . . . . . . . . . . . . . . . . . . . . . 8 4 Targets Rammed 13 | . . . . . . . . . . . . . . . . . . . . . . . . . . 9 4 Kicked . | . . . . . . . . . . . . . . . . . . . . . . . . . . . . Crushed 1 | . . . . . . . . . . . . . . . . . . . . . . . . . . 1 . Highest Temperature 437 | . . 51 . . . 13 . . . . 437 16 54 . . 3 . 44 . 50 62 2 70 311 . 424 11 Average Temperature 96 | . . 24 . . . 7 . . . . 171 14 27 . . 3 . 24 . 21 16 2 26 120 . 106 7 Received Heat Transfer 1022 | . . 24 . . 9 9 . 6 . . 90 9 . . . . . . . . 25 . . 142 123 126 459 Effects 5 | . . . . . . . . . . . 4 . . . . . . . . . . . . 1 . . . Shutdowns 1 | . . . . . . . . . . . 1 . . . . . . . . . . . . . . . . Energy Bleed 3 | . . . . . . . . . . . 2 . . . . . . . . . . . . 1 . . . Interference 1 | . . . . . . . . . . . 1 . . . . . . . . . . . . . . . . Siege Activations 2 | . . . . . . . . . . . . . . . . . . . . . . . . . . 2 . Total Turns 69 | . . . . . . . . . . . . . . . . . . . . . . . . . . 69 . Longest Duration 52 | . . . . . . . . . . . . . . . . . . . . . . . . . . 52 . Robots Corrupted . | . . . . . . . . . . . . . . . . . . . . . . . . . . . . Combat Hostiles . | . . . . . . . . . . . . . . . . . . . . . . . . . . . . Parts Fried 7 | . . 5 . . . . . . . . . . . . . . . . . . 2 . . . . . . Impact Corruptions . | . . . . . . . . . . . . . . . . . . . . . . . . . . . . Robots Melted 1 | . . . . . . . . . . . . . . . . . . . . . . . . . . 1 . Combat Hostiles . | . . . . . . . . . . . . . . . . . . . . . . . . . . . . Parts Melted 7 | . . . . . . . . . . . 1 . . . . . . . . . 5 . . . . 1 . Heat Transferred 5960 | . . 150 . . . . . . . . 1680 . . . . 300 . 180 . . 650 . . 555 . 2427 18 Parts Sabotaged . | . . . . . . . . . . . . . . . . . . . . . . . . . . . . Parts Stolen 13 | . . . . . . . . 5 . . . . 6 . . . . 2 . . . . . . . . . Parts Stripped . | . . . . . . . . . . . . . . . . . . . . . . . . . . . . Power Chain Reactions 5 | . . 2 . . . . . . . . 1 . . . . . . . . . 1 . . . . 1 . Missiles Intercepted . | . . . . . . . . . . . . . . . . . . . . . . . . . . . . Alert | -11 -10 -10 -10 -9 -8 -7 -7 -7 -7 -6 -6 -6 -6 -6 -5 -5 -5 -5 -5 -4 -4 -4 -4 -3 -2 -2 -1 ------- Run | Scr Mat Min Exi Min Mat Fac Low Low Zio Pro Fac Low Low Dat Pro Fac Upp Upp Zhi Pro Fac Arm Lab Res Res Tes Acc Peak Influence 958 | . . 288 . . 42 120 . . . . 441 . . . . 215 . . . . 687 857 . 550 430 958 817 Initial 523 | . . . . . . 16 . . . . 15 . . . . . . . . . 72 333 . . 309 230 523 Average 306 | . . 130 . . 24 58 . . . . 227 . . . . 123 . . . . 458 451 . 237 349 614 597 Maximum Alert Level 3 | . . 1 . . . . . . . . 2 . . . . 1 . . . . 2 3 . 2 2 3 3 Low Security (%) 42 | 100 100 73 . 100 100 100 . . . . 56 . . . . 91 . . . . 2 . . 52 . . . Level 1 23 | . . 26 . . . . . . . . 39 . . . . 8 . . . . 32 30 . 7 81 34 . Level 2 25 | . . . . . . . . . . . 4 . . . . . . . . . 65 63 . 39 18 17 81 Level 3 8 | . . . . . . . . . . . . . . . . . . . . . . 6 . . . 47 18 Level 4 . | . . . . . . . . . . . . . . . . . . . . . . . . . . . . Level 5 . | . . . . . . . . . . . . . . . . . . . . . . . . . . . . High Security . | . . . . . . . . . . . . . . . . . . . . . . . . . . . . Max Security . | . . . . . . . . . . . . . . . . . . . . . . . . . . . . Squads Dispatched 37 | . . . . . . 2 . . . . 3 . . . . 1 . . . . 5 2 . 6 1 11 6 Investigation 7 | . . . . . . . . . . . 2 . . . . 1 . . . . . 1 . . . 2 1 Extermination 3 | . . . . . . . . . . . . . . . . . . . . . 1 . . 1 . 1 . Reinforcement 17 | . . . . . . 2 . . . . 1 . . . . . . . . . 4 1 . 1 1 5 2 Assault 2 | . . . . . . . . . . . . . . . . . . . . . . . . 2 . . . Garrison 2 | . . . . . . . . . . . . . . . . . . . . . . . . . . . 2 Intercept 6 | . . . . . . . . . . . . . . . . . . . . . . . . 2 . 3 1 Searches Triggered 1 | . . . . . . . . . . . 1 . . . . . . . . . . . . . . . . Data Miner Redirects 4 | . . . . . . . . . . . . . . . . 1 . . . . . . . 2 . 1 . Construction Impeded 4 | . . . . . . . . . . . . . . . . . . . . . 2 . . . . 2 . Haulers Reinforced . | . . . . . . . . . . . . . . . . . . . . . . . . . . . . Active Scanning Responses . | . . . . . . . . . . . . . . . . . . . . . . . . . . . . Cargo Convoy Interrupts . | . . . . . . . . . . . . . . . . . . . . . . . . . . . . Stealth | -11 -10 -10 -10 -9 -8 -7 -7 -7 -7 -6 -6 -6 -6 -6 -5 -5 -5 -5 -5 -4 -4 -4 -4 -3 -2 -2 -1 --------- Run | Scr Mat Min Exi Min Mat Fac Low Low Zio Pro Fac Low Low Dat Pro Fac Upp Upp Zhi Pro Fac Arm Lab Res Res Tes Acc Distress Signals 8 | . . . . . . . . . . . . . . . . . . . . . 2 2 . 3 . 1 . Communications Jammed . | . . . . . . . . . . . . . . . . . . . . . . . . . . . . Distress Signals . | . . . . . . . . . . . . . . . . . . . . . . . . . . . . Times Spotted 273 | . . 5 . . 6 5 3 9 . 1 22 5 5 . . 4 . 7 . 2 30 29 1 31 16 50 42 Peak Tracking Total 19 | . . 2 . . 4 2 4 4 . 1 11 7 5 . . 2 . 5 . . 9 14 1 11 11 19 13 Tactical Retreats 47 | . . . . . . 1 . 3 . . 8 2 . . . 1 . 2 . . 5 4 . 7 2 6 6 Traps | -11 -10 -10 -10 -9 -8 -7 -7 -7 -7 -6 -6 -6 -6 -6 -5 -5 -5 -5 -5 -4 -4 -4 -4 -3 -2 -2 -1 ------- Run | Scr Mat Min Exi Min Mat Fac Low Low Zio Pro Fac Low Low Dat Pro Fac Upp Upp Zhi Pro Fac Arm Lab Res Res Tes Acc Traps Triggered 8 | . . . . . . . . . . . . . . . . 1 . . . . . . . 1 2 3 1 Indirectly . | . . . . . . . . . . . . . . . . . . . . . . . . . . . . Trap Hack Attempts . | . . . . . . . . . . . . . . . . . . . . . . . . . . . . Triggered . | . . . . . . . . . . . . . . . . . . . . . . . . . . . . Disarmed . | . . . . . . . . . . . . . . . . . . . . . . . . . . . . Reprogrammed . | . . . . . . . . . . . . . . . . . . . . . . . . . . . . Reused . | . . . . . . . . . . . . . . . . . . . . . . . . . . . . Traps Extracted . | . . . . . . . . . . . . . . . . . . . . . . . . . . . . Installed . | . . . . . . . . . . . . . . . . . . . . . . . . . . . . Triggered 2 | . . . . . . . . . . . 1 . . . . . . 1 . . . . . . . . . Exploded 1 | . . . 1 . . . . . . . . . . . . . . . . . . . . . . . . Machines | -11 -10 -10 -10 -9 -8 -7 -7 -7 -7 -6 -6 -6 -6 -6 -5 -5 -5 -5 -5 -4 -4 -4 -4 -3 -2 -2 -1 ---------- Run | Scr Mat Min Exi Min Mat Fac Low Low Zio Pro Fac Low Low Dat Pro Fac Upp Upp Zhi Pro Fac Arm Lab Res Res Tes Acc Machines Disabled 21 | . . 2 . . . . . 1 . . 1 . . . . 2 1 . . . 1 3 1 2 . 7 . Max in Single Turn 1 | . . 1 . . . . . 1 . . 1 . . . . 1 1 . . . 1 1 1 1 . 1 . Garrison Access 1 | . . . . . . . . . . . 1 . . . . . . . . . . . . . . . . Energy Cycler 1 | . . . . . . . . . . . . . . . . . . . . . . . . . . . 1 Machines Sabotaged . | . . . . . . . . . . . . . . . . . . . . . . . . . . . . Garrisons Compromised . | . . . . . . . . . . . . . . . . . . . . . . . . . . . . Overloaded Fab Kills 6 | . . . . . . . . . . . 4 . . . . . . . . . . . . . . 2 . Hacking | -11 -10 -10 -10 -9 -8 -7 -7 -7 -7 -6 -6 -6 -6 -6 -5 -5 -5 -5 -5 -4 -4 -4 -4 -3 -2 -2 -1 --------- Run | Scr Mat Min Exi Min Mat Fac Low Low Zio Pro Fac Low Low Dat Pro Fac Upp Upp Zhi Pro Fac Arm Lab Res Res Tes Acc Machines Accessed 56 | . . . . . 1 . 1 . . . 11 . . 4 . 4 2 2 5 . 6 10 2 4 . 3 1 Terminals 25 | . . . . . 1 . . . . . 6 . . . . 3 . . . . 6 6 . 1 . 1 1 Fabricators 8 | . . . . . . . . . . . 1 . . . . 1 . . . . . 4 . . . 2 . Repair Stations 1 | . . . . . . . . . . . 1 . . . . . . . . . . . . . . . . Recycling Units . | . . . . . . . . . . . . . . . . . . . . . . . . . . . . Scanalyzers 2 | . . . . . . . . . . . 1 . . . . . . . . . . . . 1 . . . Garrison Access 4 | . . . . . . . . . . . 2 . . . . . . . . . . . . 2 . . . Total Hacks 186 | . . . . . 3 . 1 . . . 37 . . 32 . 12 2 7 17 . 16 30 19 4 . 4 2 Successful 132 | . . . . . 3 . 1 . . . 24 . . 32 . 4 2 7 17 . 6 14 19 . . 2 1 Failed 54 | . . . . . . . . . . . 13 . . . . 8 . . . . 10 16 . 4 . 2 1 Catastrophic 12 | . . . . . . . . . . . 1 . . . . 2 . . . . 5 1 . 2 . 1 . Database Lockouts . | . . . . . . . . . . . . . . . . . . . . . . . . . . . . Manual 43 | . . . 1 . . . . . . . 11 . . . . 4 . . . . 4 17 1 1 . 4 . Terminals 72 | . . . . . 3 . . . . . 16 . . . . 10 . . . . 16 23 . 1 . 1 2 Fabricators 13 | . . . . . . . . . . . 1 . . . . 2 . . . . . 7 . . . 3 . Repair Stations 2 | . . . . . . . . . . . 2 . . . . . . . . . . . . . . . . Recycling Units . | . . . . . . . . . . . . . . . . . . . . . . . . . . . . Scanalyzers 15 | . . . . . . . . . . . 14 . . . . . . . . . . . . 1 . . . Garrison Access 6 | . . . . . . . . . . . 4 . . . . . . . . . . . . 2 . . . Terminal Hacks 99 | . . . . . 3 . 1 . . . 5 . . 32 . 1 2 7 17 . 6 5 19 . . . 1 Record 45 | . . . . . . . . . . . . . . 11 . . 1 6 6 . 2 . 19 . . . . Part Schematic 15 | . . . . . . . . . . . . . . 12 . . . . 3 . . . . . . . . Robot Schematic 6 | . . . . . . . . . . . . . . 6 . . . . . . . . . . . . . Robot Analysis 4 | . . . . . . . . . . . . . . . . . . . 4 . . . . . . . . Prototype ID Bank 7 | . . . . . . . . . . . . . . 3 . . . . 4 . . . . . . . . Open Door 3 | . . . . . . . 1 . . . . . . . . . 1 1 . . . . . . . . . Level Access Points 1 | . . . . . 1 . . . . . . . . . . . . . . . . . . . . . . Branch Access Points 1 | . . . . . . . . . . . . . . . . . . . . . 1 . . . . . . Emergency Access Points 2 | . . . . . 1 . . . . . . . . . . . . . . . . 1 . . . . . Terminal Index 1 | . . . . . 1 . . . . . . . . . . . . . . . . . . . . . . Alert Level 1 | . . . . . . . . . . . 1 . . . . . . . . . . . . . . . . Locate Traps 5 | . . . . . . . . . . . 2 . . . . 1 . . . . . 1 . . . . 1 Patrol Status 1 | . . . . . . . . . . . . . . . . . . . . . . 1 . . . . . Recall Investigation 1 | . . . . . . . . . . . . . . . . . . . . . 1 . . . . . . Recall Reinforcements 1 | . . . . . . . . . . . . . . . . . . . . . 1 . . . . . . Zone Layout 5 | . . . . . . . . . . . 2 . . . . . . . . . 1 2 . . . . . Fabricator Hacks 3 | . . . . . . . . . . . . . . . . 2 . . . . . 1 . . . . . Load Schematic 2 | . . . . . . . . . . . . . . . . 1 . . . . . 1 . . . . . Build 1 | . . . . . . . . . . . . . . . . 1 . . . . . . . . . . . Repair Station Hacks 2 | . . . . . . . . . . . 2 . . . . . . . . . . . . . . . . Scan Component 1 | . . . . . . . . . . . 1 . . . . . . . . . . . . . . . . Repair 1 | . . . . . . . . . . . 1 . . . . . . . . . . . . . . . . Recycling Unit Hacks . | . . . . . . . . . . . . . . . . . . . . . . . . . . . . Scanalyzer 12 | . . . . . . . . . . . 12 . . . . . . . . . . . . . . . . Insert Component 6 | . . . . . . . . . . . 6 . . . . . . . . . . . . . . . . Analyze 6 | . . . . . . . . . . . 6 . . . . . . . . . . . . . . . . Garrison Access Hacks 1 | . . . . . . . . . . . 1 . . . . . . . . . . . . . . . . Seal Access 1 | . . . . . . . . . . . 1 . . . . . . . . . . . . . . . . Unauthorized Hacks 15 | . . . . . . . . . . . 4 . . . . 1 . . . . . 8 . . . 2 . Terminals 12 | . . . . . . . . . . . 3 . . . . 1 . . . . . 7 . . . 1 . Track 2 | . . . . . . . . . . . . . . . . . . . . . . 2 . . . . . Botnet 7 | . . . . . . . . . . . 3 . . . . 1 . . . . . 3 . . . . . Disrupt 3 | . . . . . . . . . . . . . . . . . . . . . . 2 . . . 1 . Fabricators 3 | . . . . . . . . . . . 1 . . . . . . . . . . 1 . . . 1 . Overload 2 | . . . . . . . . . . . 1 . . . . . . . . . . . . . . 1 . Download 1 | . . . . . . . . . . . . . . . . . . . . . . 1 . . . . . Repair Stations . | . . . . . . . . . . . . . . . . . . . . . . . . . . . . Recycling Units . | . . . . . . . . . . . . . . . . . . . . . . . . . . . . Scanalyzers . | . . . . . . . . . . . . . . . . . . . . . . . . . . . . Garrison Access . | . . . . . . . . . . . . . . . . . . . . . . . . . . . . Data Cores Recovered . | . . . . . . . . . . . . . . . . . . . . . . . . . . . . Used . | . . . . . . . . . . . . . . . . . . . . . . . . . . . . Hacking Detections 32 | . . . . . 1 . . . . . 9 . . . . 4 . . . . 4 7 . 4 . 2 1 Full Trace Events 3 | . . . . . . . . . . . 1 . . . . 1 . . . . . . . . . 1 . Feedback Events . | . . . . . . . . . . . . . . . . . . . . . . . . . . . . Feedback Blocked . | . . . . . . . . . . . . . . . . . . . . . . . . . . . . Robot Schematics Acquired 6 | . . . . . . . . . . . . . . 6 . . . . . . . . . . . . . Robots Built . | . . . . . . . . . . . . . . . . . . . . . . . . . . . . Authchips . | . . . . . . . . . . . . . . . . . . . . . . . . . . . . Time . | . . . . . . . . . . . . . . . . . . . . . . . . . . . . Total Robot Build Rating . | . . . . . . . . . . . . . . . . . . . . . . . . . . . . Part Schematics Acquired 21 | . . . . . . . . . . . 2 . . 12 . . . . 3 . . 1 . . . 3 . Parts Built 1 | . . . . . . . . . . . . . . . . 1 . . . . . . . . . . . Authchips . | . . . . . . . . . . . . . . . . . . . . . . . . . . . . Time 62 | . . . . . . . . . . . . . . . . 62 . . . . . . . . . . . Total Part Build Rating 7 | . . . . . . . . . . . . . . . . 7 . . . . . . . . . . . Parts Repaired 1 | . . . . . . . . . . . 1 . . . . . . . . . . . . . . . . Time 62 | . . . . . . . . . . . 62 . . . . . . . . . . . . . . . . Parts Recycled . | . . . . . . . . . . . . . . . . . . . . . . . . . . . . Recycled Matter . | . . . . . . . . . . . . . . . . . . . . . . . . . . . . Retrieved Matter . | . . . . . . . . . . . . . . . . . . . . . . . . . . . . Retrieved Components . | . . . . . . . . . . . . . . . . . . . . . . . . . . . . Parts Scanalyzed 3 | . . . . . . . . . . . 3 . . . . . . . . . . . . . . . . Part Schematics Acquired 2 | . . . . . . . . . . . 2 . . . . . . . . . . . . . . . . Parts Damaged 1 | . . . . . . . . . . . 1 . . . . . . . . . . . . . . . . Bothacking | -11 -10 -10 -10 -9 -8 -7 -7 -7 -7 -6 -6 -6 -6 -6 -5 -5 -5 -5 -5 -4 -4 -4 -4 -3 -2 -2 -1 ------------ Run | Scr Mat Min Exi Min Mat Fac Low Low Zio Pro Fac Low Low Dat Pro Fac Upp Upp Zhi Pro Fac Arm Lab Res Res Tes Acc Used RIF Installer . | . . . . . . . . . . . . . . . . . . . . . . . . . . . . Robots Hacked . | . . . . . . . . . . . . . . . . . . . . . . . . . . . . Non-combat . | . . . . . . . . . . . . . . . . . . . . . . . . . . . . Combat . | . . . . . . . . . . . . . . . . . . . . . . . . . . . . Robot Hacks Applied . | . . . . . . . . . . . . . . . . . . . . . . . . . . . . Relay Couplers Released . | . . . . . . . . . . . . . . . . . . . . . . . . . . . . Fabnet Peak Effective % . | . . . . . . . . . . . . . . . . . . . . . . . . . . . . Robots Rewired . | . . . . . . . . . . . . . . . . . . . . . . . . . . . . Allies Hacked . | . . . . . . . . . . . . . . . . . . . . . . . . . . . . Hacks Repelled . | . . . . . . . . . . . . . . . . . . . . . . . . . . . . Allies | -11 -10 -10 -10 -9 -8 -7 -7 -7 -7 -6 -6 -6 -6 -6 -5 -5 -5 -5 -5 -4 -4 -4 -4 -3 -2 -2 -1 -------- Run | Scr Mat Min Exi Min Mat Fac Low Low Zio Pro Fac Low Low Dat Pro Fac Upp Upp Zhi Pro Fac Arm Lab Res Res Tes Acc Total Allies 26 | . . 2 . 3 . . . . 4 . . . . . . . . . . . . . . . . . 17 Largest Group 10 | . . 2 2 3 3 . . . 4 4 4 . . . . . . . . . . . . . . . 10 Highest-Rated Group 130 | . . 46 46 40 40 . . . 107 107 107 . . . . . . . . . . . . . . . 130 Highest-Rated Ally 31 | . . 31 31 16 16 . . . 31 31 31 . . . . . . . . . . . . . . . 15 Total Orders 7 | . . . . . . . 3 . . . 4 . . . . . . . . . . . . . . . . FOLLOW 1 | . . . . . . . . . . . 1 . . . . . . . . . . . . . . . . EXPLORE 1 | . . . . . . . 1 . . . . . . . . . . . . . . . . . . . . RETURN 5 | . . . . . . . 2 . . . 3 . . . . . . . . . . . . . . . . Ally Attacks 80 | . . 2 . . 23 . . . . 6 17 . . . . . . . . . . . . . . . 32 Total Damage 1279 | . . 22 . . 257 . . . . 137 387 . . . . . . . . . . . . . . . 476 Kills 7 | . . . . . 1 . . . . 1 5 . . . . . . . . . . . . . . . . Allies Corrupted . | . . . . . . . . . . . . . . . . . . . . . . . . . . . . Allies Melted . | . . . . . . . . . . . . . . . . . . . . . . . . . . . . Intel | -11 -10 -10 -10 -9 -8 -7 -7 -7 -7 -6 -6 -6 -6 -6 -5 -5 -5 -5 -5 -4 -4 -4 -4 -3 -2 -2 -1 ------- Run | Scr Mat Min Exi Min Mat Fac Low Low Zio Pro Fac Low Low Dat Pro Fac Upp Upp Zhi Pro Fac Arm Lab Res Res Tes Acc Robot Analysis Total 4 | . . . . . . . . . . . . . . . . . . . 4 . . . . . . . . Derelict Logs Recovered 13 | . . 1 . . . . 2 1 1 2 . 1 . . 2 . 2 1 . . . . . . . . . Drone Launches 5 | . . . . . . . 2 . . . 3 . . . . . . . . . . . . . . . . Drone Recoveries 4 | . . . . . . . 1 . . . 3 . . . . . . . . . . . . . . . . Decoded 0b10 Intel 7 | . . . . . . . . . . . 7 . . . . . . . . . . . . . . . . Items 6 | . . . . . . . . . . . 6 . . . . . . . . . . . . . . . . Machines 1 | . . . . . . . . . . . 1 . . . . . . . . . . . . . . . . Exploration | -11 -10 -10 -10 -9 -8 -7 -7 -7 -7 -6 -6 -6 -6 -6 -5 -5 -5 -5 -5 -4 -4 -4 -4 -3 -2 -2 -1 ------------- Run | Scr Mat Min Exi Min Mat Fac Low Low Zio Pro Fac Low Low Dat Pro Fac Upp Upp Zhi Pro Fac Arm Lab Res Res Tes Acc Turns Passed 8683 | 39 254 281 268 309 171 201 190 651 628 236 596 519 327 39 318 198 199 323 82 299 649 329 100 364 179 691 243 Spaces Moved 12162 | 35 268 249 241 284 150 295 351 631 913 371 828 683 531 79 377 350 457 698 165 581 1132 537 164 536 224 726 306 Core 1382 | 2 . . . . . . . 2 . . . . 1 . . . . . . . . . . 206 222 650 299 Treads 86 | . . . . . . . . . . . . . . . . . . . . . . . . 1 2 76 7 Legs . | . . . . . . . . . . . . . . . . . . . . . . . . . . . . Wheels 1242 | 33 268 249 241 284 150 17 . . . . . . . . . . . . . . . . . . . . . Hover . | . . . . . . . . . . . . . . . . . . . . . . . . . . . . Flight 9452 | . . . . . . 278 351 629 913 371 828 683 530 79 377 350 457 698 165 581 1132 537 164 329 . . . Fastest Speed 39 | 50 90 90 100 100 100 50 50 50 50 50 50 50 50 50 50 39 42 42 42 42 42 42 42 42 50 50 50 Average Speed 53 | 88 90 95 106 100 100 52 50 51 50 50 50 50 51 50 50 41 42 42 42 42 42 42 42 45 58 68 59 Slowest Speed 700 | 100 90 115 115 100 100 100 50 400 50 50 50 50 700 50 150 42 42 42 42 42 42 42 42 170 163 250 145 Overloaded Moves . | . . . . . . . . . . . . . . . . . . . . . . . . . . . . Propulsion Burnouts . | . . . . . . . . . . . . . . . . . . . . . . . . . . . . Robots Hopped 2 | . . . . . . . 1 . . . . . . . . . . . . 1 . . . . . . . Cave-ins Triggered . | . . . . . . . . . . . . . . . . . . . . . . . . . . . . Teleports 2 | . . . . . . . . . . . . . . . . . . . . . . 1 . 1 . . . Exploration Rate (%) 50 | 3 42 58 61 56 21 7 77 67 86 60 31 69 67 68 57 11 69 82 60 62 37 40 96 27 12 81 15 Regions Visited 27 Branch Regions 18 Pre-discovered Areas 11 | . . . . . . . 1 1 2 . . 1 . 1 . . 2 . 3 . . . . . . . . Known Exits Taken 16 | . . . . . 1 1 1 1 . 1 1 1 . . 1 1 1 1 1 1 1 1 1 . . . . Unknown Exits Taken 11 | 1 1 1 1 1 . . . . 1 . . . 1 1 . . . . . . . . . 1 1 1 . Scrap Searched 30 | . . 1 . 2 . . 4 2 4 4 . 2 1 . 3 . 2 5 . . . . . . . . . Spaces Dug 114 | . . . . . . 1 . 4 . . 18 9 5 . . 8 . . . . 35 23 . 8 2 1 . Terrain Destroyed 806 | . . 22 . . 18 18 . 4 . . 18 9 125 . 25 27 . 101 . 74 106 24 . 124 2 109 . Melee 21 | . . . . . . 1 . 4 . . 14 . . . . . . . . . . . . . 2 . . Projectile 110 | . . . . . . . . . . . 4 9 6 . . 11 . 1 . . 41 24 . 11 . 3 . AOE 675 | . . 22 . . 18 17 . . . . . . 119 . 25 16 . 100 . 74 65 . . 113 . 106 . Terrain Rammed . | . . . . . . . . . . . . . . . . . . . . . . . . . . . . Walls Destroyed . | . . . . . . . . . . . . . . . . . . . . . . . . . . . . Machines Disabled . | . . . . . . . . . . . . . . . . . . . . . . . . . . . . Actions | -11 -10 -10 -10 -9 -8 -7 -7 -7 -7 -6 -6 -6 -6 -6 -5 -5 -5 -5 -5 -4 -4 -4 -4 -3 -2 -2 -1 --------- Run | Scr Mat Min Exi Min Mat Fac Low Low Zio Pro Fac Low Low Dat Pro Fac Upp Upp Zhi Pro Fac Arm Lab Res Res Tes Acc Total 13932 | 40 278 274 252 309 166 328 365 942 1086 417 961 850 570 78 505 384 463 715 177 628 1231 600 191 609 259 892 362 Wait 1059 | . . 12 . 26 2 11 12 286 152 37 54 159 23 . 112 2 2 3 . 44 10 17 5 1 . 89 . Move 12131 | 34 267 248 240 283 149 294 348 630 912 370 827 682 530 78 376 349 456 697 164 578 1131 536 163 535 223 725 306 Hop 2 | . . . . . . . 1 . . . . . . . . . . . . 1 . . . . . . . Pick Up 68 | . 7 . 1 . 5 4 1 5 10 1 10 . 2 . 4 1 2 2 1 . 2 1 4 . 1 4 . Fast Attach 97 | 6 1 . 2 . . 4 . 2 2 3 5 . 2 . 4 5 . 1 5 . 7 2 3 11 9 15 8 Attach 33 | . . 1 1 . 1 2 . 1 2 1 5 . . . 1 2 . . . . 1 . 3 4 2 5 1 Detach 20 | . . . 1 . . 2 . . . . 1 . . . 1 1 . . . . . 1 1 4 1 6 1 Swap 36 | . 3 . 2 . 2 2 . . . . 7 . 1 . 1 . . . 1 . 7 2 4 3 . 1 . Drop 104 | . . . 5 . 2 3 3 7 8 3 11 . 1 . 5 5 2 1 6 . 7 2 5 6 3 18 1 Fire 279 | . . 13 . . 5 5 . . . . 27 9 11 . 1 19 1 11 . 5 66 39 3 45 . 17 2 Melee 38 | . . . . . . 1 . 11 . 2 14 . . . . . . . . . . . . . 7 3 . Ram 4 | . . . . . . . . . . . . . . . . . . . . . . . . . . . 4 Kick . | . . . . . . . . . . . . . . . . . . . . . . . . . . . . Crush 9 | . . . . . . . . . . . . . . . . . . . . . . . . . . 9 . Escape Stasis 52 | . . . . . . . . . . . . . . . . . . . . . . . . . 13 . 39 Rewire . | . . . . . . . . . . . . . . . . . . . . . . . . . . . . Trap . | . . . . . . . . . . . . . . . . . . . . . . . . . . . . Miscellaneous . | . . . . . . . . . . . . . . . . . . . . . . . . . . . . Route ------- -11/Scrapyard -10/Materials -10/Mines (discovered 3 exits: [*Mat x2] / *Exi) -10/Exiles -9/Mines -8/Materials (discovered 3 exits: *Fac x3) -7/Factory -7/Lower Caves -7/Lower Caves -7/Zion -6/Proximity Caves -6/Factory (discovered 6 exits: *Fac x4 / *Low x2) -6/Lower Caves -6/Lower Caves (discovered 2 exits: Fac / *Dat) -6/Data Miner -5/Proximity Caves -5/Factory (discovered 2 exits: *Upp x2) -5/Upper Caves -5/Upper Caves (discovered 2 exits: *Fac / *Zhi) -5/Zhirov -4/Proximity Caves -4/Factory (discovered 7 exits: *Res x2 / Upp x2 / Ext x2 / *Arm) -4/Armory (discovered 2 exits: Res / *Lab) -4/Lab -3/Research -2/Research -2/Testing -1/Access History --------- Turn | Location | Event 16 | -11/Scrapyard | Discovered new exit (range 16) 40 | -11/Scrapyard | Entered Materials 268 | -10/Materials | Discovered new exit (range 15) 294 | -10/Materials | Entered Mines 301 | -10/Mines | Build established: Mutant 409 | -10/Mines | Discovered new exit (range 9) 491 | -10/Mines | Learned 2 Materials zone layouts 518 | -10/Mines | Discovered new exit (range 4) 562 | -10/Mines | Deemed a non-threat by the Exiles lab entrance 562 | -10/Mines | Discovered new exit (range 5) 575 | -10/Mines | Entered Exiles 575 | -10/Exiles | Accompanied by 2 allies 603 | -10/Exiles | Met 8R-AWN 605 | -10/Exiles | Led the pair of lost Derelicts to a safe place 623 | -10/Exiles | Met EX-HEX 654 | -10/Exiles | Met EX-BIN 670 | -10/Exiles | Aligned with FarCom system 671 | -10/Exiles | Given EX-Vault access code 697 | -10/Exiles | Opened EX-Vault 704 | -10/Exiles | Found Prototype Device 704 | -10/Exiles | Identified Supersonic Drone Bay 710 | -10/Exiles | Found Prototype Energy Cannon 710 | -10/Exiles | Identified Gui. Plasma Cannon 716 | -10/Exiles | Found Prototype Flight Unit 738 | -10/Exiles | Warned to stay clear of 0b10 Research branches 747 | -10/Exiles | Exiles lab attacked by MAIN.C 831 | -10/Exiles | Discovered new exit (range 11) 843 | -10/Exiles | Stole three prototypes: Supersonic Drone Bay, Gui. Plasma Cannon, Flying Fortress v7 843 | -10/Exiles | Entered Mines 968 | -9/Mines | Assisted by bots powering up and referring to "LRC-V3" 1073 | -9/Mines | Discovered new exit (range 6) 1152 | -9/Mines | Entered Materials 1152 | -8/Materials | Accompanied by 3 allies 1152 | -8/Materials | Evolved 4 slots: Propulsion x2, Utility x2 1177 | -8/Materials | Identified exit to Factory 1323 | -8/Materials | Entered Factory 1323 | -7/Factory | Evolved 2 slots: Utility x2 1325 | -7/Factory | FarCom data flow suspended 1347 | -7/Factory | Identified Flying Fortress v7 1494 | -7/Factory | Discovered new exit (range 15) 1501 | -7/Factory | Identified exit to Lower Caves 1524 | -7/Factory | Entered Lower Caves 1601 | -7/Lower Caves | Found Prototype Device 1622 | -7/Lower Caves | Learned location of Zion (-7) 1676 | -7/Lower Caves | Spotted B-75 Beast 1708 | -7/Lower Caves | Discovered new exit (range 10) 1711 | -7/Lower Caves | Learned Factory emergency access door positions 1714 | -7/Lower Caves | Attracted the attention of an 0b10 checkpoint 1714 | -7/Lower Caves | Identified exit to Lower Caves 1714 | -7/Lower Caves | Entered another Lower Caves area 2250 | -7/Lower Caves | Discovered new exit (range 15) 2252 | -7/Lower Caves | Spotted PW-FY1(f) 2252 | -7/Lower Caves | Spotted ZV-8UF(f) 2252 | -7/Lower Caves | Spotted G0-X8G(f) 2253 | -7/Lower Caves | Spotted PR-7PJ(f) 2254 | -7/Lower Caves | Encountered a Master Thief 2255 | -7/Lower Caves | Encountered a Master Thief 2256 | -7/Lower Caves | Encountered a Master Thief 2256 | -7/Lower Caves | Supersonic Drone Bay stolen by Master Thief 2256 | -7/Lower Caves | Imp. Shield Generator stolen by Master Thief 2257 | -7/Lower Caves | Encountered a Master Thief 2258 | -7/Lower Caves | System Restoration Module stolen by Master Thief 2258 | -7/Lower Caves | Imp. Trap Extractor stolen by Master Thief 2297 | -7/Lower Caves | Identified exit to Zion 2365 | -7/Lower Caves | Entered Zion 2384 | -7/Zion | Received a hallucinogenic algorithm 2390 | -7/Zion | Discovered new exit (range 15) 2420 | -7/Zion | Found CR-A16's Pointy Stick 2653 | -7/Zion | Gained Derelict followers 2687 | -7/Zion | Found Prototype Processor 2691 | -7/Zion | Found Prototype Processor 2694 | -7/Zion | Found Prototype Processor 2696 | -7/Zion | Found Prototype Processor 2702 | -7/Zion | Found Prototype Processor 2782 | -7/Zion | Given the Hacking Drone Bay 2783 | -7/Zion | Found Prototype Device 2783 | -7/Zion | Identified Hacking Drone Bay 2993 | -7/Zion | Entered Proximity Caves 2993 | -6/Proximity Caves | Accompanied by 4 allies 3041 | -6/Proximity Caves | Learned Factory terminal intel 3070 | -6/Proximity Caves | Attracted the attention of an 0b10 checkpoint 3115 | -6/Proximity Caves | Identified exit to Factory 3229 | -6/Proximity Caves | Entered Factory 3229 | -6/Factory | Accompanied by 4 allies 3229 | -6/Factory | Evolved 2 slots: Utility x2 3231 | -6/Factory | Loaded intel: 26 terminal locations 3304 | -6/Factory | Discovered new exit (range 7) 3306 | -6/Factory | Discovered new exit (range 11) 3308 | -6/Factory | Identified exit to Lower Caves 3312 | -6/Factory | Identified exit to Factory 3315 | -6/Factory | Identified Exp. Targeting Computer 3315 | -6/Factory | Identified Exp. Terrain Scan Processor (x2) 3315 | -6/Factory | Identified Exp. Signal Interpreter (x2) 3315 | -6/Factory | Identified Heart of Steel 3329 | -6/Factory | Found Prototype Launcher 3364 | -6/Factory | Spotted B-75 Beast 3410 | -6/Factory | Identified Scatter Rocket Array 3579 | -6/Factory | Search patrols dispatched 3623 | -6/Factory | Repaired Faulty Exp. Terrain Scan Processor? 3715 | -6/Factory | Discovered exit to Factory (range 16) 3825 | -6/Factory | Entered Lower Caves 3857 | -6/Lower Caves | Encountered a Warlord checkpoint 3969 | -6/Lower Caves | Build established: Scout 4291 | -6/Lower Caves | Discovered new exit (range 15) 4342 | -6/Lower Caves | Attracted the attention of an 0b10 outpost 4343 | -6/Lower Caves | Identified exit to Lower Caves 4344 | -6/Lower Caves | Entered another Lower Caves area 4362 | -6/Lower Caves | Discovered exit to Factory (range 12) 4545 | -6/Lower Caves | Spotted 5W-IFS(f) 4545 | -6/Lower Caves | Spotted P3-O9C(f) 4545 | -6/Lower Caves | Spotted GE-1AO(f) 4546 | -6/Lower Caves | Encountered a Master Thief 4546 | -6/Lower Caves | Encountered a Master Thief 4546 | -6/Lower Caves | Encountered a Master Thief 4547 | -6/Lower Caves | Destroyed P3-O9C(f) 4547 | -6/Lower Caves | Spotted N7-3YP(f) 4548 | -6/Lower Caves | Encountered a Master Thief 4548 | -6/Lower Caves | Gui. Plasma Cannon stolen by Master Thief 4548 | -6/Lower Caves | Hacking Drone Bay stolen by Master Thief 4549 | -6/Lower Caves | Spotted YB-BW1(f) 4550 | -6/Lower Caves | Encountered a Master Thief 4551 | -6/Lower Caves | Destroyed 5W-IFS(f) 4555 | -6/Lower Caves | Exp. Signal Interpreter stolen by Master Thief 4562 | -6/Lower Caves | Flying Fortress v7 stolen by Master Thief 4564 | -6/Lower Caves | Destroyed YB-BW1(f) 4579 | -6/Lower Caves | Discovered new exit (range 9) 4671 | -6/Lower Caves | Entered Data Miner 4671 | -6/Data Miner | Discovered new exit (range 6) 4681 | -6/Data Miner | Met Data Miner 4689 | -6/Data Miner | Learned location of Section 7 (-3) 4689 | -6/Data Miner | Acquired the access code to Warlord's prototype stash 4699 | -6/Data Miner | Received God Mode back door access code from Data Miner 4710 | -6/Data Miner | Entered Proximity Caves 4710 | -5/Proximity Caves | Learned 8 Factory zone layouts 4714 | -5/Proximity Caves | Learned Factory stockpile data 5009 | -5/Proximity Caves | Discovered exit to Factory (range 13) 5028 | -5/Proximity Caves | Entered Factory 5028 | -5/Factory | Evolved 2 slots: Propulsion x2 5050 | -5/Factory | Build established: Derelict-Scout 5077 | -5/Factory | Discovered new exit (range 13) 5111 | -5/Factory | Incoming investigation squad redirected 5157 | -5/Factory | Fabricated Exp. Signal Interpreter? 5206 | -5/Factory | Discovered new exit (range 13) 5212 | -5/Factory | Identified exit to Upper Caves 5226 | -5/Factory | Entered Upper Caves 5257 | -5/Upper Caves | Learned location of Warlord (-4) 5382 | -5/Upper Caves | Found Alien Artifact 5400 | -5/Upper Caves | Discovered new exit (range 15) 5412 | -5/Upper Caves | Identified exit to Upper Caves 5425 | -5/Upper Caves | Entered another Upper Caves area 5425 | -5/Upper Caves | Spotted SX-Q66(f) 5425 | -5/Upper Caves | Spotted 4F-ZUZ(f) 5426 | -5/Upper Caves | Encountered a Master Thief 5426 | -5/Upper Caves | Encountered a Master Thief 5426 | -5/Upper Caves | Gui. Plasma Cannon stolen by Master Thief 5430 | -5/Upper Caves | Alien Artifact stolen by Master Thief 5432 | -5/Upper Caves | Discovered new exit (range 8) 5449 | -5/Upper Caves | Learned Factory trap positions 5459 | -5/Upper Caves | Build established: Scout 5495 | -5/Upper Caves | Learned Research emergency access door positions 5495 | -5/Upper Caves | Learned 8 Factory zone layouts 5625 | -5/Upper Caves | Attracted the attention of an 0b10 checkpoint 5740 | -5/Upper Caves | Discovered new exit (range 10) 5743 | -5/Upper Caves | Identified exit to Zhirov 5748 | -5/Upper Caves | Entered Zhirov 5748 | -5/Zhirov | Discovered new exit (range 3) 5756 | -5/Zhirov | Met Zhirov 5766 | -5/Zhirov | Learned location of Quarantine (-3) 5766 | -5/Zhirov | Learned location of Testing (-2) 5766 | -5/Zhirov | Learned location of Command (-1) 5768 | -5/Zhirov | Zhirov requested help retrieving the SGEMP Prototype 5777 | -5/Zhirov | Found Alien Artifact 5777 | -5/Zhirov | Identified Integrated Reactor 5777 | -5/Zhirov | Installed Integrated Reactor, increased core energy generation (+10) 5787 | -5/Zhirov | Found Alien Artifact 5829 | -5/Zhirov | Identified exit to Proximity Caves 5830 | -5/Zhirov | Entered Proximity Caves 6071 | -4/Proximity Caves | Build established: Hacker-Scout 6124 | -4/Proximity Caves | Discovered new exit (range 10) 6128 | -4/Proximity Caves | Identified exit to Factory 6129 | -4/Proximity Caves | Entered Factory 6129 | -4/Factory | Evolved 2 slots: Utility x2 6131 | -4/Factory | Loaded intel: 103 trap records 6168 | -4/Factory | Found Prototype Launcher 6168 | -4/Factory | Identified Com. Tesla Bomb Launcher 6227 | -4/Factory | Discovered new exit (range 11) 6342 | -4/Factory | Spotted B-86 Titan 6592 | -4/Factory | Discovered new exit (range 11) 6596 | -4/Factory | Identified exit to Research 6632 | -4/Factory | Identified exit to Upper Caves 6632 | -4/Factory | Identified exit to Extension 6632 | -4/Factory | Identified exit to Armory 6778 | -4/Factory | Entered Armory 6910 | -4/Armory | Found Fusion Bomb Launcher 7057 | -4/Armory | Discovered exit to Research (range 15) 7106 | -4/Armory | Identified Transdimensional Reconstructor 7106 | -4/Armory | Warped through subspace to slip node 7106 | -4/Armory | Discovered new exit (range 1) 7106 | -4/Armory | Identified exit to Lab 7107 | -4/Armory | Entered Lab 7107 | -4/Lab | Discovered exit to Research (range 9) 7113 | -4/Lab | Unable to decrypt terminal 7113 | -4/Lab | Opened the door to a hidden lab 7114 | -4/Lab | Gained access to the hidden lab's interior 7116 | -4/Lab | Detected by scanners 7117 | -4/Lab | Unable to decrypt terminal 7119 | -4/Lab | Found Alien Artifact 7131 | -4/Lab | Found Prototype Protection 7131 | -4/Lab | Identified Med. Regenerative Plating 7136 | -4/Lab | Found Prototype Energy Cannon 7136 | -4/Lab | Identified Warp Cannon 7141 | -4/Lab | Found Warp Cannon 7152 | -4/Lab | Confronted by A5 7161 | -4/Lab | Unable to decrypt terminal 7186 | -4/Lab | Found Integrated Reactor 7186 | -4/Lab | Installed Integrated Reactor, increased core energy generation (+10) 7191 | -4/Lab | Found Alien Artifact 7199 | -4/Lab | Found Transdimensional Reconstructor 7205 | -4/Lab | Unable to decrypt terminal 7207 | -4/Lab | Entered Research 7207 | -3/Research | Evolved 2 slots: Propulsion x2 7341 | -3/Research | Spotted B-86 Titan 7387 | -3/Research | Intercept squad dispatched 7403 | -3/Research | Spotted Tracker 7411 | -3/Research | Destroyed Tracker 7416 | -3/Research | Warped through subspace 7439 | -3/Research | Identified Core Reset Matrix 7439 | -3/Research | Identified Core Regenerator 7439 | -3/Research | Used Core Reset Matrix 7440 | -3/Research | Used Core Regenerator, restored core integrity (+191) 7444 | -3/Research | Released all parts (6) 7473 | -3/Research | Lost 5 parts (2n3u) 7501 | -3/Research | First assault squad dispatched 7518 | -3/Research | Incoming assault squad redirected 7521 | -3/Research | Incoming assault squad redirected 7565 | -3/Research | Discovered new exit (range 16) 7571 | -3/Research | Entered another Research area 7571 | -2/Research | Evolved 2 slots: Power x1, Weapon x1 7738 | -2/Research | Spotted B-90 Cyclops 7741 | -2/Research | Discovered new exit (range 5) 7750 | -2/Research | Entered Testing 7769 | -2/Testing | Found Portable AFG 7805 | -2/Testing | Build established: Alien-Mutant 7838 | -2/Testing | Found Prototype Ballistic Gun 7838 | -2/Testing | Identified Hyp. Multirail 7856 | -2/Testing | Found Prototype Energy Cannon 7856 | -2/Testing | Identified Imp. Potential Cannon 7878 | -2/Testing | Spotted Striker 7878 | -2/Testing | Spotted Striker 7904 | -2/Testing | Found Prototype Processor 7904 | -2/Testing | Identified Exp. Core Analyzer 8031 | -2/Testing | Destroyed Striker 8032 | -2/Testing | Spotted Alpha 7 8048 | -2/Testing | Scanned by Researcher 8080 | -2/Testing | Destroyed Striker 8101 | -2/Testing | Stole the SGEMP Prototype 8258 | -2/Testing | Found Prototype Launcher 8258 | -2/Testing | Identified Com. Tesla Bomb Launcher 8290 | -2/Testing | Found Prototype Device 8290 | -2/Testing | Identified Exp. Hardlight Generator 8336 | -2/Testing | Incoming investigation squad redirected 8351 | -2/Testing | Intercept squad dispatched 8353 | -2/Testing | System corruption reached 10% 8356 | -2/Testing | Spotted Tracker 8357 | -2/Testing | Spotted Tracker 8367 | -2/Testing | Found Prototype Energy Gun 8369 | -2/Testing | Spotted Combat Programmer 8395 | -2/Testing | Spotted Alpha 7 8409 | -2/Testing | Core integrity fell below 50% 8421 | -2/Testing | Spotted Combat Programmer 8433 | -2/Testing | Discovered new exit (range 15) 8439 | -2/Testing | Core integrity fell below 20% 8441 | -2/Testing | Entered Access 8441 | -1/Access | Evolved 2 slots: Weapon x2 8442 | -1/Access | Attacked by Zhirov 8467 | -1/Access | Lost 10 parts (4n6u) 8504 | -1/Access | Identified Warp Gun 8572 | -1/Access | System corruption reached 10% 8604 | -1/Access | Garrison activated, responded to threat 8609 | -1/Access | Spotted B-99 Colossus 8610 | -1/Access | Lost 6 parts (3n3u) 8614 | -1/Access | Core integrity fell below 50% 8667 | -1/Access | Emitted hypermatrix ping 8672 | -1/Access | Assembled emerged from beneath the floor 8673 | -1/Access | Core integrity fell below 20% 8676 | -1/Access | Assembled emerged from beneath the floor 8676 | -1/Access | Garrison activated, responded to threat 8682 | -1/Access | Intercept squad dispatched 8684 | -1/Access | Energy Cycler disabled 8684 | -1/Access | Destroyed by S-43 Plague with Heavy Machine Gun Last Messages --------------- 08677_ Slug penetrates as-55616. 08677_ Slug penetrates L-61 Swordsman. 08677_ as-55616 destroyed. 08677_ K-01 Serf cleans the Fabricator. 08678_ as-71884 destroyed. 08678_ R-10 Processor collects Unknown Storage. 08678_ K-01 Serf destroyed. 08678_ as-13206 destroyed. 08679_ Slug penetrates as-71084. 08680_ as-24399 destroyed. 08680_ as-71084 destroyed. 08680_ as-01188 destroyed. 08682_ ALERT: Reliable intel has pinpointed LRC-V3, intercept squad en route. 08682_ Slug penetrates Energy Cycler. 08682_ Slug penetrates Wall. 08684_ ALERT: Power surge detected, dispatching additional patrols. 08684_ Energy Cycler explodes. 08684_ C-30 ARC bursts open, deploying its payload. 08684_ S-43 Plague unfolds itself. Map ----- +----------------------------------------------------+ | ?????????????????????????????????????????????????? | | ?????????????????????????????????????????????????? | | ?????????????????????????????????????????????????? | | ?????????????????????????????????????????????????? | | ?????????????????????????????????????????????????? | | ?????????????????????????????????????????????????? | | ?????????????????????????????????????????????????? | | ?????????????????????????????????????????????????? | | ?????????????????????????????????????????????????? | | ?????????????????????????????????????????????????? | | ?????????????????????????????????????????????????? | | ?????????????????????????????????????????????????? | | ???????????????##############????????????????????? | | ???????????????# #????????????????????? | | ???????????????# #????????????????????? | | ???????????????# #????????????????????? | | ?????????????#?# #????????????????????? | | ?????????????# # #????????????????????? | | ??????????????#; #????????????????????? | | ??????????????#; #????????????????????? | | ??????????????#; #????????????????????? | | ??????????????#; #????????????????????? | | ?????????????##; #????????????????????? | | ?????????????# ; #????????????????????? | | ?????????????# ; #????????????????????? | | ?????????????##;;;; @####???????????????????? | | ??????????????# +???????????????????? | | ??????????????#### ###???????????????????? | | ?????????????????# #????????????????????? | | ??????????######?# ##????????????????????? | | ?????????? """" ?# #?????????????????????? | | ????###??#""""""?## ##?????????????????????? | | ??? ?#""F ""??# #??????????????????????? | | ??? #""" ### #??????????????????????? | | ??? #??????????????????????? | | ?? #??????????????????????? | | ?? % ss #??????????????????????? | | ? * !! d s%s #??????????????????????? | | ? * ! "s" #??????????????????????? | | ? ""G"" k##########+### ????????? | | ? h ???????? | | ? ???????? | | ? ???????? | | ?? ####### %= ???????? | | ??????????# ??????? | | ??????????# ! ??????? | | ?????????+ ???????? | | ?????????###### ########## ######??????????? | | ??????????????# ?????????# #???????????????? | | ??????????????# ?????????# #???????????????? | +----------------------------------------------------+ Best States ------------- Heat Dissipation 52 Coolant Potential 120 Energy Generation 45 Energy Capacity 1550 Matter Stores 400 Matter Capacity 550 Sight Range 16 Robot Scan Range 16 Terrain Scan Range 16 Terrain Scan Density 1010 ECM Strength 2 Power Amplification 30 Additional Mass Support 12 Base Temperature (-) 200 Corruption Block 9 Armor Coverage 225 Resistance: TH 20 Resistance: EM 25 Propulsion Shielding 33 Utility Shielding 90 Evasion (%) 73 Targeting Accuracy 6 Core Analysis 6 Recoil Reduction 8 Matter Filtering 50 Particle Charging 20 Offensive Hacking 26 Defensive Hacking 37 Authchip Count 1 Item Schematics ----------------- Hvy. Tesla Rifle | -2/Testing | Archive Gravity Neutralizer | -2/Testing | Archive Exp. Melee Analysis Suite | -2/Testing | Archive Robot Schematics ------------------ None Fabricated ------------ Exp. Signal Interpreter | x1 | -5/Factory Alien Tech Used ----------------- Integrated Reactor Transdimensional Reconstructor Core Reset Matrix Core Regenerator Achievements -------------- Ride The Lightning Challenges ------------ None Game ------ Seed DecoderSkeletonMachine Manual? 0 Play Time 03:20:28 Cumulative 346.1 hours Start 2022.08.18 @ 13:35:05 End 2022.08.18 @ 21:38:06 Sessions 1 Manual Loads 0 Difficulty Rogue Special Mode None Game No. 163 Rogue 159 Adventurer 0 Explorer 4 Win Type - Total 18 Types 4/1/2/4/1/2/3/0/1 Lore% 83 Gallery% 86 Achievement% 78 Wizard Run 0 Options --------- ASCII 0 Keyboard 0 Movement Mouse Keybinds 0 Fullscreen 1 Font 18/SmallcapsGlow Map View 76x50 Tactical HUD 1 Map Filters NONE Filters NONE Steam 1 RUN: bc1712a5-91aa-4687-ab7d-81f8e36fd96a